{"text_format":"3","workbook":"xlsx","n_sheets":3,"sheets":["Starta","Presentbudget och spårare","Data"],"not_rendered":{"charts":1,"defined_names":1},"read":"whole","date_system":"1900"}

{"sheet":"Starta","index":0,"n_rows":7,"n_cols":2,"rows_kept":7}
[null,"Om den här mallen"]
[null,"Använd den här mallen för att registrera dina presentköp och spåra dem mot budget."]
[null,"Ange namnen på familj och vänner, presentartiklar, budgeterade och betalade belopp samt anteckningar i tabellen och välj tillfälle och händelsemånad."]
[null,"Månadsöversiktsdiagrammet uppdateras automatiskt."]
[null,"Obs: "]
[null,"Ytterligare anvisningar finns i kolumn A på kalkylbladet PRESENTBUDGET OCH SPÅRARE. Den här texten har avsiktligt dolts. Om du vill ta bort texten markerar du kolumn A och väljer sedan TA BORT. Om du vill att texten ska visas markerar du kolumn A och ändrar sedan teckenfärg."]
[null,"För mer information tabeller trycker du på SKIFT och sen på F10 i en tabell. Välj alternativet TABELL och sen ALTERNATIVTEXT."]

{"sheet":"Presentbudget och spårare","index":1,"n_rows":10,"n_cols":13,"rows_kept":10,"merged":[[0,1,0,4],[0,5,0,12],[1,1,1,2],[2,1,2,12],[3,1,3,3]]}
["Skapa en personlig presentbudget och spårare i det här kalkylbladet. Kalkylbladets rubrik finns i cellen till höger och tips finns i cell F1.  Användbara anvisningar om hur du använder det här kalkylbladet finns i cellerna i den här kolumnen.","Presentbudget och spårare",{"$nulls":3},"Fyll i så mycket du kan i början av varje nytt år. Ange namn på familj och vänner, välj presenttillfälle, välj händelsemånad och ange hur mycket du vill lägga ut. Varje person kan visas flera gånger i tabellen för varje tillfälle (födelsedag, helgdag, kalas osv.)."]
["Månadsöversiktsetiketten finns i cellen till höger och tips finns i cell D2.","Månadsöversikt",null,"Använd diagrammet för att se de kommande månaderna och för att kunna planera i förväg. Registrera dina köp för att spåra dem mot din budget."]
["Kolumndiagram för budgeterade belopp med linjediagramöverlägg för använt belopp finns i cellen till höger.","Kolumndiagram för budgeterade belopp med linjediagramöverlägg för använt belopp finns i den här cellen."]
["Etiketten presentbudget och spårare finns i cellen till höger.","Presentbudget och spårare"]
["Ange information i tabellen budgetspårare som börjar i cellen till höger.","Vem","Händelse","Månad","Belopp\nbudgeterat","Belopp\nspenderat","Present","Länk till present","I lager/\nOnline","Köpt?","Inslaget?","Levererad?","Anteckningar"]
[null,"Namn 1","Födelsedagar","Juni",{"v":50,"d":"50 kr"},{"v":30,"d":"30 kr"},"Skor","Säljare","Online","Ja","Nej","Nej","6/16, filmbiljetter"]
[null,"Namn 2","Årsdagar","April",{"v":20,"d":"20 kr"},{"v":20,"d":"20 kr"},"En katt","Säljare","I lager","Nej","Nej","Nej","Han nämnde att han gillar hundar"]
[null,"Namn 3","Helgdagar","Juli",{"v":50,"d":"50 kr"},{"v":70,"d":"70 kr"},"Hörlurar","Säljare","Online","Nej","Nej","Nej","Studentrumssaker"]
[null,"Namn 4","Födelsedagar","Januari",{"v":20,"d":"20 kr"},{"v":30,"d":"30 kr"},"Spel","Säljare","I lager","Ja","Ja","Ja"]
[null,"Namn 5","Bröllop","Juni",{"v":100,"d":"100 kr"},{"v":150,"d":"150 kr"},"Kristallvas","Säljare","I lager","Ja","Ja","Nej"]

{"sheet":"Data","index":2,"n_rows":13,"n_cols":8,"rows_kept":13,"hidden":true}
["Händelser",null,"Datum","Datum","Budgeterad summa\nFödelsedagar","Budgeterad summa\nHelgdagar","Budgeterad summa\nÖvrigt","Summa utgifter"]
["Födelsedagar",null,"Januari","Jan",{"$f":"SUMIFS(BudgetTracker[Belopp\nbudgeterat],BudgetTracker[Månad],\"Januari\",BudgetTracker[Händelse],\"Födelsedagar\")","v":{"v":20,"d":"20 kr"}},{"$f":"SUMIFS(BudgetTracker[Belopp\nbudgeterat],BudgetTracker[Månad],\"Januari\",BudgetTracker[Händelse],\"Helgdagar\")","v":{"v":0,"d":"0 kr"}},{"$f":"SUMIFS(BudgetTracker[Belopp\nbudgeterat],BudgetTracker[Månad],\"Januari\",BudgetTracker[Händelse],\"<>Helgdagar\",BudgetTracker[Händelse],\"<>Födelsedagar\")","v":{"v":0,"d":"0 kr"}},{"$f":"SUMIFS(BudgetTracker[Belopp\nspenderat],BudgetTracker[Månad],\"Januari\")","v":{"v":30,"d":"30 kr"}}]
["Helgdagar",null,"Februari","Feb",{"$f":"SUMIFS(BudgetTracker[Belopp\nbudgeterat],BudgetTracker[Månad],\"Februari\",BudgetTracker[Händelse],\"Födelsedagar\")","v":{"v":0,"d":"0 kr"}},{"$f":"SUMIFS(BudgetTracker[Belopp\nbudgeterat],BudgetTracker[Månad],\"Februari\",BudgetTracker[Händelse],\"Helgdagar\")","v":{"v":0,"d":"0 kr"}},{"$f":"SUMIFS(BudgetTracker[Belopp\nbudgeterat],BudgetTracker[Månad],\"Februari\",BudgetTracker[Händelse],\"<>Helgdagar\",BudgetTracker[Händelse],\"<>Födelsedagar\")","v":{"v":0,"d":"0 kr"}},{"$f":"SUMIFS(BudgetTracker[Belopp\nspenderat],BudgetTracker[Månad],\"Februari\")","v":{"v":0,"d":"0 kr"}}]
["Årsdagar",null,"Mars","Mar",{"$f":"SUMIFS(BudgetTracker[Belopp\nbudgeterat],BudgetTracker[Månad],\"Mars\",BudgetTracker[Händelse],\"Födelsedagar\")","v":{"v":0,"d":"0 kr"}},{"$f":"SUMIFS(BudgetTracker[Belopp\nbudgeterat],BudgetTracker[Månad],\"Mars\",BudgetTracker[Händelse],\"Helgdagar\")","v":{"v":0,"d":"0 kr"}},{"$f":"SUMIFS(BudgetTracker[Belopp\nbudgeterat],BudgetTracker[Månad],\"Mars\",BudgetTracker[Händelse],\"<>Helgdagar\",BudgetTracker[Händelse],\"<>Födelsedagar\")","v":{"v":0,"d":"0 kr"}},{"$f":"SUMIFS(BudgetTracker[Belopp\nspenderat],BudgetTracker[Månad],\"Mars\")","v":{"v":0,"d":"0 kr"}}]
["Bröllop",null,"April","Apr",{"$f":"SUMIFS(BudgetTracker[Belopp\nbudgeterat],BudgetTracker[Månad],\"April\",BudgetTracker[Händelse],\"Födelsedagar\")","v":{"v":0,"d":"0 kr"}},{"$f":"SUMIFS(BudgetTracker[Belopp\nbudgeterat],BudgetTracker[Månad],\"April\",BudgetTracker[Händelse],\"Helgdagar\")","v":{"v":0,"d":"0 kr"}},{"$f":"SUMIFS(BudgetTracker[Belopp\nbudgeterat],BudgetTracker[Månad],\"April\",BudgetTracker[Händelse],\"<>Helgdagar\",BudgetTracker[Händelse],\"<>Födelsedagar\")","v":{"v":20,"d":"20 kr"}},{"$f":"SUMIFS(BudgetTracker[Belopp\nspenderat],BudgetTracker[Månad],\"April\")","v":{"v":20,"d":"20 kr"}}]
["Möhippor",null,"Maj","Maj",{"$f":"SUMIFS(BudgetTracker[Belopp\nbudgeterat],BudgetTracker[Månad],\"Maj\",BudgetTracker[Händelse],\"Födelsedagar\")","v":{"v":0,"d":"0 kr"}},{"$f":"SUMIFS(BudgetTracker[Belopp\nbudgeterat],BudgetTracker[Månad],\"Maj\",BudgetTracker[Händelse],\"Helgdagar\")","v":{"v":0,"d":"0 kr"}},{"$f":"SUMIFS(BudgetTracker[Belopp\nbudgeterat],BudgetTracker[Månad],\"Maj\",BudgetTracker[Händelse],\"<>Helgdagar\",BudgetTracker[Händelse],\"<>Födelsedagar\")","v":{"v":0,"d":"0 kr"}},{"$f":"SUMIFS(BudgetTracker[Belopp\nspenderat],BudgetTracker[Månad],\"Maj\")","v":{"v":0,"d":"0 kr"}}]
["Babyshowers",null,"Juni","Jun",{"$f":"SUMIFS(BudgetTracker[Belopp\nbudgeterat],BudgetTracker[Månad],\"Juni\",BudgetTracker[Händelse],\"Födelsedagar\")","v":{"v":50,"d":"50 kr"}},{"$f":"SUMIFS(BudgetTracker[Belopp\nbudgeterat],BudgetTracker[Månad],\"Juni\",BudgetTracker[Händelse],\"Helgdagar\")","v":{"v":0,"d":"0 kr"}},{"$f":"SUMIFS(BudgetTracker[Belopp\nbudgeterat],BudgetTracker[Månad],\"Juni\",BudgetTracker[Händelse],\"<>Helgdagar\",BudgetTracker[Händelse],\"<>Födelsedagar\")","v":{"v":100,"d":"100 kr"}},{"$f":"SUMIFS(BudgetTracker[Belopp\nspenderat],BudgetTracker[Månad],\"Juni\")","v":{"v":180,"d":"180 kr"}}]
["Examen",null,"Juli","Jul",{"$f":"SUMIFS(BudgetTracker[Belopp\nbudgeterat],BudgetTracker[Månad],\"Juli\",BudgetTracker[Händelse],\"Födelsedagar\")","v":{"v":0,"d":"0 kr"}},{"$f":"SUMIFS(BudgetTracker[Belopp\nbudgeterat],BudgetTracker[Månad],\"Juli\",BudgetTracker[Händelse],\"Helgdagar\")","v":{"v":50,"d":"50 kr"}},{"$f":"SUMIFS(BudgetTracker[Belopp\nbudgeterat],BudgetTracker[Månad],\"Juli\",BudgetTracker[Händelse],\"<>Helgdagar\",BudgetTracker[Händelse],\"<>Födelsedagar\")","v":{"v":0,"d":"0 kr"}},{"$f":"SUMIFS(BudgetTracker[Belopp\nspenderat],BudgetTracker[Månad],\"Juli\")","v":{"v":70,"d":"70 kr"}}]
["Övrigt",null,"Augusti","Aug",{"$f":"SUMIFS(BudgetTracker[Belopp\nbudgeterat],BudgetTracker[Månad],\"Augusti\",BudgetTracker[Händelse],\"Födelsedagar\")","v":{"v":0,"d":"0 kr"}},{"$f":"SUMIFS(BudgetTracker[Belopp\nbudgeterat],BudgetTracker[Månad],\"Augusti\",BudgetTracker[Händelse],\"Helgdagar\")","v":{"v":0,"d":"0 kr"}},{"$f":"SUMIFS(BudgetTracker[Belopp\nbudgeterat],BudgetTracker[Månad],\"Augusti\",BudgetTracker[Händelse],\"<>Helgdagar\",BudgetTracker[Händelse],\"<>Födelsedagar\")","v":{"v":0,"d":"0 kr"}},{"$f":"SUMIFS(BudgetTracker[Belopp\nspenderat],BudgetTracker[Månad],\"Augusti\")","v":{"v":0,"d":"0 kr"}}]
[null,null,"September","Sep",{"$f":"SUMIFS(BudgetTracker[Belopp\nbudgeterat],BudgetTracker[Månad],\"September\",BudgetTracker[Händelse],\"Födelsedagar\")","v":{"v":0,"d":"0 kr"}},{"$f":"SUMIFS(BudgetTracker[Belopp\nbudgeterat],BudgetTracker[Månad],\"September\",BudgetTracker[Händelse],\"Helgdagar\")","v":{"v":0,"d":"0 kr"}},{"$f":"SUMIFS(BudgetTracker[Belopp\nbudgeterat],BudgetTracker[Månad],\"September\",BudgetTracker[Händelse],\"<>Helgdagar\",BudgetTracker[Händelse],\"<>Födelsedagar\")","v":{"v":0,"d":"0 kr"}},{"$f":"SUMIFS(BudgetTracker[Belopp\nspenderat],BudgetTracker[Månad],\"September\")","v":{"v":0,"d":"0 kr"}}]
[null,null,"Oktober","Okt",{"$f":"SUMIFS(BudgetTracker[Belopp\nbudgeterat],BudgetTracker[Månad],\"Oktober\",BudgetTracker[Händelse],\"Födelsedagar\")","v":{"v":0,"d":"0 kr"}},{"$f":"SUMIFS(BudgetTracker[Belopp\nbudgeterat],BudgetTracker[Månad],\"Oktober\",BudgetTracker[Händelse],\"Helgdagar\")","v":{"v":0,"d":"0 kr"}},{"$f":"SUMIFS(BudgetTracker[Belopp\nbudgeterat],BudgetTracker[Månad],\"Oktober\",BudgetTracker[Händelse],\"<>Helgdagar\",BudgetTracker[Händelse],\"<>Födelsedagar\")","v":{"v":0,"d":"0 kr"}},{"$f":"SUMIFS(BudgetTracker[Belopp\nspenderat],BudgetTracker[Månad],\"Oktober\")","v":{"v":0,"d":"0 kr"}}]
[null,null,"November","Nov",{"$f":"SUMIFS(BudgetTracker[Belopp\nbudgeterat],BudgetTracker[Månad],\"November\",BudgetTracker[Händelse],\"Födelsedagar\")","v":{"v":0,"d":"0 kr"}},{"$f":"SUMIFS(BudgetTracker[Belopp\nbudgeterat],BudgetTracker[Månad],\"November\",BudgetTracker[Händelse],\"Helgdagar\")","v":{"v":0,"d":"0 kr"}},{"$f":"SUMIFS(BudgetTracker[Belopp\nbudgeterat],BudgetTracker[Månad],\"November\",BudgetTracker[Händelse],\"<>Helgdagar\",BudgetTracker[Händelse],\"<>Födelsedagar\")","v":{"v":0,"d":"0 kr"}},{"$f":"SUMIFS(BudgetTracker[Belopp\nspenderat],BudgetTracker[Månad],\"November\")","v":{"v":0,"d":"0 kr"}}]
[null,null,"December","Dec",{"$f":"SUMIFS(BudgetTracker[Belopp\nbudgeterat],BudgetTracker[Månad],\"December\",BudgetTracker[Händelse],\"Födelsedagar\")","v":{"v":0,"d":"0 kr"}},{"$f":"SUMIFS(BudgetTracker[Belopp\nbudgeterat],BudgetTracker[Månad],\"December\",BudgetTracker[Händelse],\"Helgdagar\")","v":{"v":0,"d":"0 kr"}},{"$f":"SUMIFS(BudgetTracker[Belopp\nbudgeterat],BudgetTracker[Månad],\"December\",BudgetTracker[Händelse],\"<>Helgdagar\",BudgetTracker[Händelse],\"<>Födelsedagar\")","v":{"v":0,"d":"0 kr"}},{"$f":"SUMIFS(BudgetTracker[Belopp\nspenderat],BudgetTracker[Månad],\"December\")","v":{"v":0,"d":"0 kr"}}]